[Event "Live Chess"]
[Site "Chess.com"]
[Date "2011.01.29"]
[Round "-"]
[White "ponchozamora"]
[Black "hipposcottimus"]
[Result "0-1"]
[CurrentPosition "r1b2rk1/ppN3pp/8/8/1P5P/P2PpPnR/3qP1B1/4K1N1 w - -"]
[Timezone "UTC"]
[ECO "A00"]
[ECOUrl "https://www.chess.com/openings/Kings-Fianchetto-Opening-1...e5-2.Bg2-Nc6"]
[UTCDate "2011.01.29"]
[UTCTime "20:29:36"]
[WhiteElo "1175"]
[BlackElo "1601"]
[TimeControl "60"]
[Termination "hipposcottimus won by checkmate"]
[StartTime "20:29:36"]
[EndDate "2011.01.29"]
[EndTime "20:30:59"]
[Link "https://www.chess.com/game/live/92719957"]

1. g3 {[%clk 0:01:00]} 1... e5 {[%clk 0:01:00]} 2. Bg2 {[%clk 0:00:59.6]} 2... Nc6 {[%clk 0:00:59.5]} 3. b3 {[%clk 0:00:59]} 3... d5 {[%clk 0:00:58.7]} 4. Bb2 {[%clk 0:00:58.6]} 4... e4 {[%clk 0:00:58.4]} 5. c3 {[%clk 0:00:58.2]} 5... f5 {[%clk 0:00:57.8]} 6. b4 {[%clk 0:00:57.8]} 6... Qe7 {[%clk 0:00:56.6]} 7. a3 {[%clk 0:00:57.3]} 7... Nf6 {[%clk 0:00:56]} 8. h3 {[%clk 0:00:56.7]} 8... Qf7 {[%clk 0:00:55.6]} 9. g4 {[%clk 0:00:55.8]} 9... Bd6 {[%clk 0:00:55.2]} 10. gxf5 {[%clk 0:00:53.6]} 10... Nh5 {[%clk 0:00:54.9]} 11. f3 {[%clk 0:00:52.1]} 11... Qxf5 {[%clk 0:00:53.6]} 12. d3 {[%clk 0:00:44.9]} 12... Ng3 {[%clk 0:00:52]} 13. Rh2 {[%clk 0:00:42.5]} 13... O-O {[%clk 0:00:49.3]} 14. Bc1 {[%clk 0:00:39]} 14... Bf4 {[%clk 0:00:47.3]} 15. Bxf4 {[%clk 0:00:36.6]} 15... Qxf4 {[%clk 0:00:47.1]} 16. Qd2 {[%clk 0:00:34.9]} 16... e3 {[%clk 0:00:45.9]} 17. Qd1 {[%clk 0:00:31.3]} 17... d4 {[%clk 0:00:45.6]} 18. Ra2 {[%clk 0:00:27.8]} 18... dxc3 {[%clk 0:00:44.7]} 19. Nxc3 {[%clk 0:00:26.9]} 19... Nd4 {[%clk 0:00:44.5]} 20. Nd5 {[%clk 0:00:24.6]} 20... Qf7 {[%clk 0:00:42.4]} 21. Nxc7 {[%clk 0:00:21.9]} 21... Qxa2 {[%clk 0:00:40.6]} 22. h4 {[%clk 0:00:19.8]} 22... Nc2+ {[%clk 0:00:39.1]} 23. Qxc2 {[%clk 0:00:15.8]} 23... Qxc2 {[%clk 0:00:38.2]} 24. Rh3 {[%clk 0:00:14.3]} 24... Qd2# {[%clk 0:00:35.6]} 0-1

[Event "Live Chess"]
[Site "Chess.com"]
[Date "2011.01.29"]
[Round "-"]
[White "hipposcottimus"]
[Black "ponchozamora"]
[Result "1-0"]
[CurrentPosition "N6r/1B1pnk1p/4p3/6P1/pPn5/2B5/4K1P1/5R2 b - -"]
[Timezone "UTC"]
[ECO "B12"]
[ECOUrl "https://www.chess.com/openings/Caro-Kann-Defense-2.d4"]
[UTCDate "2011.01.29"]
[UTCTime "20:27:06"]
[WhiteElo "1600"]
[BlackElo "1176"]
[TimeControl "60"]
[Termination "hipposcottimus won on time"]
[StartTime "20:27:06"]
[EndDate "2011.01.29"]
[EndTime "20:29:22"]
[Link "https://www.chess.com/game/live/92719248"]

1. e4 {[%clk 0:01:00]} 1... c6 {[%clk 0:01:00]} 2. d4 {[%clk 0:00:59.6]} 2... b6 {[%clk 0:00:59.6]} 3. d5 {[%clk 0:00:58.3]} 3... Bb7 {[%clk 0:00:59.2]} 4. dxc6 {[%clk 0:00:57]} 4... Bxc6 {[%clk 0:00:58.5]} 5. Nc3 {[%clk 0:00:55.5]} 5... g6 {[%clk 0:00:58.1]} 6. f3 {[%clk 0:00:54.9]} 6... Bg7 {[%clk 0:00:57.7]} 7. Bd2 {[%clk 0:00:54.4]} 7... a6 {[%clk 0:00:57.3]} 8. Bd3 {[%clk 0:00:52.5]} 8... b5 {[%clk 0:00:56.9]} 9. Nge2 {[%clk 0:00:51.8]} 9... b4 {[%clk 0:00:56.2]} 10. Nd5 {[%clk 0:00:49.8]} 10... a5 {[%clk 0:00:55.3]} 11. O-O {[%clk 0:00:47.8]} 11... Bxd5 {[%clk 0:00:54.1]} 12. exd5 {[%clk 0:00:47.2]} 12... Bxb2 {[%clk 0:00:51.3]} 13. Rb1 {[%clk 0:00:45.2]} 13... Bf6 {[%clk 0:00:50.8]} 14. c3 {[%clk 0:00:44.5]} 14... Qb6+ {[%clk 0:00:49.3]} 15. Kh1 {[%clk 0:00:39.9]} 15... e6 {[%clk 0:00:46.6]} 16. cxb4 {[%clk 0:00:39]} 16... a4 {[%clk 0:00:41.8]} 17. a3 {[%clk 0:00:37.3]} 17... Ne7 {[%clk 0:00:39]} 18. dxe6 {[%clk 0:00:35.5]} 18... fxe6 {[%clk 0:00:36.8]} 19. Re1 {[%clk 0:00:34.7]} 19... Be5 {[%clk 0:00:36.1]} 20. Nc3 {[%clk 0:00:28]} 20... Qd6 {[%clk 0:00:33.4]} 21. Be4 {[%clk 0:00:24]} 21... Bxh2 {[%clk 0:00:31.4]} 22. Nb5 {[%clk 0:00:14.6]} 22... Qg3 {[%clk 0:00:28.5]} 23. f4 {[%clk 0:00:11.4]} 23... Nbc6 {[%clk 0:00:25.3]} 24. Nc7+ {[%clk 0:00:09.8]} 24... Kf7 {[%clk 0:00:22.6]} 25. Nxa8 {[%clk 0:00:09.1]} 25... Nd4 {[%clk 0:00:21.1]} 26. Re3 {[%clk 0:00:08.6]} 26... Qf2 {[%clk 0:00:15.7]} 27. Re2 {[%clk 0:00:07.2]} 27... Qg1+ {[%clk 0:00:12.8]} 28. Qxg1 {[%clk 0:00:04.3]} 28... Bxg1 {[%clk 0:00:12.3]} 29. Kxg1 {[%clk 0:00:03.9]} 29... Nxe2+ {[%clk 0:00:09.9]} 30. Kf2 {[%clk 0:00:02.1]} 30... Nd4 {[%clk 0:00:09]} 31. Bb7 {[%clk 0:00:01.7]} 31... g5 {[%clk 0:00:07.1]} 32. Bc3 {[%clk 0:00:01.4]} 32... Nc2 {[%clk 0:00:02.6]} 33. fxg5 {[%clk 0:00:01.1]} 33... Nxa3 {[%clk 0:00:02.2]} 34. Rf1 {[%clk 0:00:00.7]} 34... Nc4 {[%clk 0:00:00.9]} 35. Ke2+ {[%clk 0:00:00.4]} 1-0

[Event "Live Chess"]
[Site "Chess.com"]
[Date "2011.01.29"]
[Round "-"]
[White "ponchozamora"]
[Black "hipposcottimus"]
[Result "0-1"]
[CurrentPosition "2r5/1p4pp/p3bk2/1R2p3/2B5/P2P2P1/2K2b1P/2N5 w - -"]
[Timezone "UTC"]
[ECO "A00"]
[ECOUrl "https://www.chess.com/openings/Vant-Kruijs-Opening-1...e5"]
[UTCDate "2011.01.29"]
[UTCTime "20:24:59"]
[WhiteElo "1177"]
[BlackElo "1599"]
[TimeControl "60"]
[Termination "hipposcottimus won on time"]
[StartTime "20:24:59"]
[EndDate "2011.01.29"]
[EndTime "20:26:58"]
[Link "https://www.chess.com/game/live/92718661"]

1. e3 {[%clk 0:01:00]} 1... e5 {[%clk 0:01:00]} 2. g3 {[%clk 0:00:59.6]} 2... e4 {[%clk 0:00:59.4]} 3. Bg2 {[%clk 0:00:59.2]} 3... d5 {[%clk 0:00:58.8]} 4. b3 {[%clk 0:00:58.8]} 4... c5 {[%clk 0:00:58.4]} 5. Bb2 {[%clk 0:00:58.4]} 5... f6 {[%clk 0:00:57.9]} 6. a3 {[%clk 0:00:58]} 6... Ne7 {[%clk 0:00:57.4]} 7. b4 {[%clk 0:00:57.6]} 7... Ng6 {[%clk 0:00:56.9]} 8. bxc5 {[%clk 0:00:56.1]} 8... Bxc5 {[%clk 0:00:56.7]} 9. d4 {[%clk 0:00:54.7]} 9... exd3 {[%clk 0:00:54.5]} 10. cxd3 {[%clk 0:00:52.4]} 10... O-O {[%clk 0:00:53.6]} 11. Nc3 {[%clk 0:00:49.8]} 11... d4 {[%clk 0:00:51.1]} 12. Ne4 {[%clk 0:00:46.7]} 12... dxe3 {[%clk 0:00:49.6]} 13. fxe3 {[%clk 0:00:45.7]} 13... Bxe3 {[%clk 0:00:47.8]} 14. Ne2 {[%clk 0:00:42.7]} 14... Ne5 {[%clk 0:00:46.6]} 15. Bxe5 {[%clk 0:00:39.8]} 15... fxe5 {[%clk 0:00:46.3]} 16. Qb3+ {[%clk 0:00:39]} 16... Kh8 {[%clk 0:00:43.2]} 17. Rf1 {[%clk 0:00:32.6]} 17... Nc6 {[%clk 0:00:31.6]} 18. Rxf8+ {[%clk 0:00:29.7]} 18... Qxf8 {[%clk 0:00:31.2]} 19. Nd6 {[%clk 0:00:28.9]} 19... Nd4 {[%clk 0:00:29.3]} 20. Qf7 {[%clk 0:00:22.6]} 20... Nc2+ {[%clk 0:00:23.8]} 21. Kd1 {[%clk 0:00:19.2]} 21... Qxf7 {[%clk 0:00:20.2]} 22. Nxf7+ {[%clk 0:00:16.2]} 22... Kg8 {[%clk 0:00:19.9]} 23. Rb1 {[%clk 0:00:14.9]} 23... Kxf7 {[%clk 0:00:18.2]} 24. Kxc2 {[%clk 0:00:14.5]} 24... Bf2 {[%clk 0:00:16.9]} 25. Bd5+ {[%clk 0:00:13.1]} 25... Be6 {[%clk 0:00:16.6]} 26. Bc4 {[%clk 0:00:08.8]} 26... Kf6 {[%clk 0:00:15.8]} 27. Rb5 {[%clk 0:00:07.1]} 27... Rc8 {[%clk 0:00:15.5]} 28. Nc1 {[%clk 0:00:00.1]} 28... a6 {[%clk 0:00:15.2]} 0-1

[Event "Live Chess"]
[Site "Chess.com"]
[Date "2011.01.29"]
[Round "-"]
[White "hipposcottimus"]
[Black "ponchozamora"]
[Result "1-0"]
[CurrentPosition "r2k1Q2/p7/1pBPp3/2b5/2P2P2/2N5/P3N2P/R4K1R b - -"]
[Timezone "UTC"]
[ECO "B00"]
[ECOUrl "https://www.chess.com/openings/Owens-Defense-2.d4-Bb7"]
[UTCDate "2011.01.29"]
[UTCTime "20:23:10"]
[WhiteElo "1598"]
[BlackElo "1178"]
[TimeControl "60"]
[Termination "hipposcottimus won by checkmate"]
[StartTime "20:23:10"]
[EndDate "2011.01.29"]
[EndTime "20:24:51"]
[Link "https://www.chess.com/game/live/92718162"]

1. e4 {[%clk 0:01:00]} 1... b6 {[%clk 0:01:00]} 2. d4 {[%clk 0:00:58.9]} 2... Bb7 {[%clk 0:00:59.6]} 3. e5 {[%clk 0:00:58.7]} 3... e6 {[%clk 0:00:59]} 4. c4 {[%clk 0:00:58.4]} 4... Be7 {[%clk 0:00:58.5]} 5. b4 {[%clk 0:00:58]} 5... f6 {[%clk 0:00:58.1]} 6. Nc3 {[%clk 0:00:57.4]} 6... fxe5 {[%clk 0:00:57.5]} 7. dxe5 {[%clk 0:00:56.7]} 7... Nh6 {[%clk 0:00:55.9]} 8. f3 {[%clk 0:00:56.4]} 8... Nf5 {[%clk 0:00:53.9]} 9. Nge2 {[%clk 0:00:53.4]} 9... Ne3 {[%clk 0:00:52.4]} 10. Bxe3 {[%clk 0:00:51]} 10... Bxb4 {[%clk 0:00:48.2]} 11. f4 {[%clk 0:00:49.2]} 11... Bxg2 {[%clk 0:00:45.7]} 12. Bxg2 {[%clk 0:00:47.5]} 12... c6 {[%clk 0:00:45.1]} 13. Kf2 {[%clk 0:00:44.5]} 13... Qh4+ {[%clk 0:00:42]} 14. Kf1 {[%clk 0:00:39.4]} 14... Rf8 {[%clk 0:00:40.8]} 15. Qe1 {[%clk 0:00:36.1]} 15... Bc5 {[%clk 0:00:38.5]} 16. Qxh4 {[%clk 0:00:33.9]} 16... Bxe3 {[%clk 0:00:37.6]} 17. Qxh7 {[%clk 0:00:30.6]} 17... d5 {[%clk 0:00:30]} 18. exd6 {[%clk 0:00:26.8]} 18... Nd7 {[%clk 0:00:27.9]} 19. Qxg7 {[%clk 0:00:25.4]} 19... Rf7 {[%clk 0:00:25.1]} 20. Qg8+ {[%clk 0:00:23.5]} 20... Nf8 {[%clk 0:00:23.8]} 21. Bxc6+ {[%clk 0:00:20.7]} 21... Kd8 {[%clk 0:00:19.9]} 22. Qxf7 {[%clk 0:00:19.8]} 22... Bc5 {[%clk 0:00:11.8]} 23. Qxf8# {[%clk 0:00:18.5]} 1-0

[Event "Live Chess"]
[Site "Chess.com"]
[Date "2011.01.29"]
[Round "-"]
[White "ponchozamora"]
[Black "hipposcottimus"]
[Result "0-1"]
[CurrentPosition "8/5k1p/p2r2p1/1p2R1P1/3p1P2/3P4/PP1K3P/8 w - -"]
[Timezone "UTC"]
[ECO "A00"]
[ECOUrl "https://www.chess.com/openings/Kings-Fianchetto-Opening-1...e5-2.Bg2-d5-3.d3"]
[UTCDate "2011.01.29"]
[UTCTime "20:20:59"]
[WhiteElo "1179"]
[BlackElo "1597"]
[TimeControl "60"]
[Termination "hipposcottimus won on time"]
[StartTime "20:20:59"]
[EndDate "2011.01.29"]
[EndTime "20:23:01"]
[Link "https://www.chess.com/game/live/92717527"]

1. g3 {[%clk 0:01:00]} 1... e5 {[%clk 0:01:00]} 2. Bg2 {[%clk 0:00:58.3]} 2... d5 {[%clk 0:00:59.7]} 3. d3 {[%clk 0:00:57.6]} 3... c5 {[%clk 0:00:59.4]} 4. Be3 {[%clk 0:00:56.8]} 4... f5 {[%clk 0:00:57.9]} 5. Qd2 {[%clk 0:00:56.1]} 5... d4 {[%clk 0:00:56.9]} 6. Bg5 {[%clk 0:00:55.6]} 6... Be7 {[%clk 0:00:55.3]} 7. Bxe7 {[%clk 0:00:48.7]} 7... Nxe7 {[%clk 0:00:55]} 8. Na3 {[%clk 0:00:46.3]} 8... O-O {[%clk 0:00:54.6]} 9. Nb5 {[%clk 0:00:45.7]} 9... a6 {[%clk 0:00:52.7]} 10. Na3 {[%clk 0:00:44.4]} 10... b5 {[%clk 0:00:51.7]} 11. Nb1 {[%clk 0:00:44]} 11... c4 {[%clk 0:00:50.8]} 12. Nf3 {[%clk 0:00:42.9]} 12... cxd3 {[%clk 0:00:47.9]} 13. cxd3 {[%clk 0:00:41.3]} 13... Bb7 {[%clk 0:00:47.5]} 14. e4 {[%clk 0:00:37.8]} 14... Nec6 {[%clk 0:00:41.8]} 15. exf5 {[%clk 0:00:35.7]} 15... Rxf5 {[%clk 0:00:41.4]} 16. Rg1 {[%clk 0:00:34]} 16... Nb4 {[%clk 0:00:35.9]} 17. Qxb4 {[%clk 0:00:30.2]} 17... Bxf3 {[%clk 0:00:32.6]} 18. Bh3 {[%clk 0:00:28.8]} 18... Rf8 {[%clk 0:00:30.9]} 19. Be6+ {[%clk 0:00:27.2]} 19... Kh8 {[%clk 0:00:29.5]} 20. Nd2 {[%clk 0:00:24.6]} 20... Qf6 {[%clk 0:00:27.8]} 21. Nxf3 {[%clk 0:00:22.6]} 21... Qxe6 {[%clk 0:00:27]} 22. Qxf8+ {[%clk 0:00:20]} 22... Qg8 {[%clk 0:00:25]} 23. Qxg8+ {[%clk 0:00:19.5]} 23... Kxg8 {[%clk 0:00:24.6]} 24. Nxe5 {[%clk 0:00:18.5]} 24... Nc6 {[%clk 0:00:24.3]} 25. Nd7 {[%clk 0:00:16.5]} 25... Rc8 {[%clk 0:00:23.5]} 26. Rc1 {[%clk 0:00:14.9]} 26... Rc7 {[%clk 0:00:23.2]} 27. Rxc6 {[%clk 0:00:13.3]} 27... Rxc6 {[%clk 0:00:21.7]} 28. Ne5 {[%clk 0:00:12.8]} 28... Re6 {[%clk 0:00:20.8]} 29. f4 {[%clk 0:00:09.9]} 29... Kf8 {[%clk 0:00:20.5]} 30. Kd2 {[%clk 0:00:09.1]} 30... Ke7 {[%clk 0:00:19.2]} 31. Re1 {[%clk 0:00:08.6]} 31... Kf6 {[%clk 0:00:18.5]} 32. Nc6 {[%clk 0:00:07.6]} 32... Rxc6 {[%clk 0:00:17.6]} 33. Re5 {[%clk 0:00:05.3]} 33... Rd6 {[%clk 0:00:16.3]} 34. g4 {[%clk 0:00:03.3]} 34... g6 {[%clk 0:00:15.2]} 35. g5+ {[%clk 0:00:02.1]} 35... Kf7 {[%clk 0:00:13.9]} 0-1

[Event "Live Chess"]
[Site "Chess.com"]
[Date "2011.01.29"]
[Round "-"]
[White "hipposcottimus"]
[Black "ponchozamora"]
[Result "1-0"]
[CurrentPosition "1k1R4/p1p5/1p6/2n1Pp2/8/2N2B2/PP5B/2K5 b - -"]
[Timezone "UTC"]
[ECO "B00"]
[ECOUrl "https://www.chess.com/openings/Owens-Defense-2.d4-Bb7"]
[UTCDate "2011.01.29"]
[UTCTime "20:19:02"]
[WhiteElo "1596"]
[BlackElo "1180"]
[TimeControl "60"]
[Termination "hipposcottimus won by checkmate"]
[StartTime "20:19:02"]
[EndDate "2011.01.29"]
[EndTime "20:20:46"]
[Link "https://www.chess.com/game/live/92716953"]

1. e4 {[%clk 0:01:00]} 1... b6 {[%clk 0:01:00]} 2. d4 {[%clk 0:00:59.4]} 2... Bb7 {[%clk 0:00:59.7]} 3. e5 {[%clk 0:00:59.1]} 3... g6 {[%clk 0:00:59.3]} 4. f3 {[%clk 0:00:57.8]} 4... Bg7 {[%clk 0:00:58.9]} 5. c4 {[%clk 0:00:57.5]} 5... h6 {[%clk 0:00:58.4]} 6. Be2 {[%clk 0:00:56.6]} 6... g5 {[%clk 0:00:58]} 7. f4 {[%clk 0:00:55]} 7... f5 {[%clk 0:00:57.5]} 8. fxg5 {[%clk 0:00:53.8]} 8... hxg5 {[%clk 0:00:56.5]} 9. Bxg5 {[%clk 0:00:52.7]} 9... d6 {[%clk 0:00:53.9]} 10. Nf3 {[%clk 0:00:50.1]} 10... dxe5 {[%clk 0:00:52.2]} 11. Nxe5 {[%clk 0:00:46.4]} 11... Bxe5 {[%clk 0:00:50.3]} 12. dxe5 {[%clk 0:00:45.7]} 12... Qxd1+ {[%clk 0:00:48.1]} 13. Bxd1 {[%clk 0:00:45.4]} 13... Bxg2 {[%clk 0:00:47]} 14. Rg1 {[%clk 0:00:44.2]} 14... Rxh2 {[%clk 0:00:44.5]} 15. Bf4 {[%clk 0:00:39]} 15... Bc6 {[%clk 0:00:41.6]} 16. Bxh2 {[%clk 0:00:36.9]} 16... e6 {[%clk 0:00:38.9]} 17. Rxg8+ {[%clk 0:00:35.8]} 17... Kd7 {[%clk 0:00:35.2]} 18. Bh5 {[%clk 0:00:35.2]} 18... Na6 {[%clk 0:00:31.6]} 19. Rg7+ {[%clk 0:00:32.5]} 19... Kd8 {[%clk 0:00:25.4]} 20. Nc3 {[%clk 0:00:32.2]} 20... Nc5 {[%clk 0:00:21.7]} 21. O-O-O+ {[%clk 0:00:31.8]} 21... Bd5 {[%clk 0:00:18.4]} 22. cxd5 {[%clk 0:00:29.8]} 22... exd5 {[%clk 0:00:17.4]} 23. Rxd5+ {[%clk 0:00:28.9]} 23... Kc8 {[%clk 0:00:12.5]} 24. Rg8+ {[%clk 0:00:26.3]} 24... Kb7 {[%clk 0:00:12]} 25. Rxa8 {[%clk 0:00:24]} 25... Kxa8 {[%clk 0:00:10.6]} 26. Bf3 {[%clk 0:00:23.2]} 26... Kb8 {[%clk 0:00:07.1]} 27. Rd8# {[%clk 0:00:22.2]} 1-0

[Event "Live Chess"]
[Site "Chess.com"]
[Date "2011.01.29"]
[Round "-"]
[White "ponchozamora"]
[Black "hipposcottimus"]
[Result "0-1"]
[CurrentPosition "3q2k1/6pp/Q7/1N1np1P1/5p2/1n1P1P1P/2r1PKB1/6NR w - -"]
[Timezone "UTC"]
[ECO "A00"]
[ECOUrl "https://www.chess.com/openings/Kings-Fianchetto-Opening-1...d5-2.Bg2-e5"]
[UTCDate "2011.01.29"]
[UTCTime "20:16:44"]
[WhiteElo "1181"]
[BlackElo "1595"]
[TimeControl "60"]
[Termination "hipposcottimus won on time"]
[StartTime "20:16:44"]
[EndDate "2011.01.29"]
[EndTime "20:18:37"]
[Link "https://www.chess.com/game/live/92716205"]

1. g3 {[%clk 0:01:00]} 1... d5 {[%clk 0:01:00]} 2. Bg2 {[%clk 0:00:59.5]} 2... e5 {[%clk 0:00:59.7]} 3. f3 {[%clk 0:00:59.1]} 3... c5 {[%clk 0:00:57.3]} 4. g4 {[%clk 0:00:58.7]} 4... f5 {[%clk 0:00:56.2]} 5. h3 {[%clk 0:00:58.3]} 5... f4 {[%clk 0:00:54.8]} 6. b3 {[%clk 0:00:56.3]} 6... Nf6 {[%clk 0:00:53.7]} 7. Bb2 {[%clk 0:00:55.8]} 7... d4 {[%clk 0:00:53.4]} 8. a3 {[%clk 0:00:55.2]} 8... Nc6 {[%clk 0:00:53.1]} 9. b4 {[%clk 0:00:54.4]} 9... Bd6 {[%clk 0:00:52.4]} 10. bxc5 {[%clk 0:00:52.5]} 10... Bxc5 {[%clk 0:00:52.1]} 11. d3 {[%clk 0:00:50.9]} 11... O-O {[%clk 0:00:51.1]} 12. Qd2 {[%clk 0:00:50.4]} 12... b5 {[%clk 0:00:47.4]} 13. c3 {[%clk 0:00:49.1]} 13... b4 {[%clk 0:00:46.2]} 14. axb4 {[%clk 0:00:46.7]} 14... dxc3 {[%clk 0:00:44.6]} 15. Bxc3 {[%clk 0:00:44.8]} 15... Bxb4 {[%clk 0:00:40.1]} 16. Bxb4 {[%clk 0:00:42.8]} 16... a5 {[%clk 0:00:39.8]} 17. Bxf8 {[%clk 0:00:38.4]} 17... Kxf8 {[%clk 0:00:39.5]} 18. Qa2 {[%clk 0:00:37.3]} 18... Nb4 {[%clk 0:00:36.9]} 19. Qc4 {[%clk 0:00:32.5]} 19... Ba6 {[%clk 0:00:29.5]} 20. Qc5+ {[%clk 0:00:27.6]} 20... Kg8 {[%clk 0:00:29]} 21. g5 {[%clk 0:00:23.8]} 21... Rc8 {[%clk 0:00:26.6]} 22. Qxa5 {[%clk 0:00:19.6]} 22... Nc2+ {[%clk 0:00:25.4]} 23. Kf2 {[%clk 0:00:15.9]} 23... Nd5 {[%clk 0:00:25]} 24. Qxa6 {[%clk 0:00:09.4]} 24... Nxa1 {[%clk 0:00:22]} 25. Na3 {[%clk 0:00:06.5]} 25... Nb3 {[%clk 0:00:19.4]} 26. Nb5 {[%clk 0:00:04.6]} 26... Rc2 {[%clk 0:00:15.9]} 0-1

[Event "Live Chess"]
[Site "Chess.com"]
[Date "2011.01.29"]
[Round "-"]
[White "hipposcottimus"]
[Black "CSumic"]
[Result "1-0"]
[CurrentPosition "r1b1r3/pp1n2pp/2nP2k1/2p3Q1/3p4/3P4/PP3PPP/R1B2RK1 b - -"]
[Timezone "UTC"]
[ECO "C40"]
[ECOUrl "https://www.chess.com/openings/Kings-Pawn-Opening-Kings-Knight-Gunderam-Gambit"]
[UTCDate "2011.01.29"]
[UTCTime "20:14:57"]
[WhiteElo "1594"]
[BlackElo "1701"]
[TimeControl "60"]
[Termination "hipposcottimus won by resignation"]
[StartTime "20:14:57"]
[EndDate "2011.01.29"]
[EndTime "20:15:51"]
[Link "https://www.chess.com/game/live/92715665"]

1. e4 {[%clk 0:01:00]} 1... e5 {[%clk 0:01:00]} 2. Nf3 {[%clk 0:00:59.6]} 2... c6 {[%clk 0:00:59.3]} 3. Bc4 {[%clk 0:00:59.3]} 3... d5 {[%clk 0:00:58]} 4. Bb3 {[%clk 0:00:59]} 4... Nd7 {[%clk 0:00:54.8]} 5. d3 {[%clk 0:00:57.7]} 5... d4 {[%clk 0:00:53.2]} 6. c3 {[%clk 0:00:55.9]} 6... c5 {[%clk 0:00:51.8]} 7. cxd4 {[%clk 0:00:55.5]} 7... exd4 {[%clk 0:00:50.8]} 8. Nbd2 {[%clk 0:00:54.9]} 8... Bd6 {[%clk 0:00:49.1]} 9. Nc4 {[%clk 0:00:54.6]} 9... Bc7 {[%clk 0:00:44.3]} 10. e5 {[%clk 0:00:53.8]} 10... Ne7 {[%clk 0:00:41.4]} 11. Nd6+ {[%clk 0:00:52.7]} 11... Bxd6 {[%clk 0:00:39.7]} 12. exd6 {[%clk 0:00:52.4]} 12... Nc6 {[%clk 0:00:39.6]} 13. Bxf7+ {[%clk 0:00:51.8]} 13... Kxf7 {[%clk 0:00:38.1]} 14. Ng5+ {[%clk 0:00:51.4]} 14... Kg6 {[%clk 0:00:36.2]} 15. O-O {[%clk 0:00:48]} 15... Re8 {[%clk 0:00:36.1]} 16. Qg4 {[%clk 0:00:43.9]} 16... Qxg5 {[%clk 0:00:34]} 17. Qxg5+ {[%clk 0:00:41]} 1-0

[Event "Live Chess"]
[Site "Chess.com"]
[Date "2011.01.29"]
[Round "-"]
[White "hipposcottimus"]
[Black "KarpovsPutzfrau"]
[Result "1-0"]
[CurrentPosition "3r4/k5pp/2N2p2/1p3p2/1P3P2/P5P1/2Pr3P/4RRK1 b - -"]
[Timezone "UTC"]
[ECO "B01"]
[ECOUrl "https://www.chess.com/openings/Scandinavian-Defense-Mieses-Kotrc-Main-Line-4.d4"]
[UTCDate "2011.01.29"]
[UTCTime "20:12:22"]
[WhiteElo "1594"]
[BlackElo "1623"]
[TimeControl "60"]
[Termination "hipposcottimus won on time"]
[StartTime "20:12:22"]
[EndDate "2011.01.29"]
[EndTime "20:14:33"]
[Link "https://www.chess.com/game/live/92714853"]

1. e4 {[%clk 0:01:00]} 1... d5 {[%clk 0:01:00]} 2. exd5 {[%clk 0:00:58.4]} 2... Qxd5 {[%clk 0:00:59.5]} 3. Nc3 {[%clk 0:00:58.2]} 3... Qa5 {[%clk 0:00:58.6]} 4. d4 {[%clk 0:00:56.7]} 4... Nc6 {[%clk 0:00:56.9]} 5. d5 {[%clk 0:00:54.1]} 5... Ne5 {[%clk 0:00:55.3]} 6. f4 {[%clk 0:00:52.3]} 6... Nc4 {[%clk 0:00:53.7]} 7. Bxc4 {[%clk 0:00:50.1]} 7... Qc5 {[%clk 0:00:52]} 8. Be2 {[%clk 0:00:46.3]} 8... Bf5 {[%clk 0:00:50.8]} 9. Nf3 {[%clk 0:00:44.8]} 9... O-O-O {[%clk 0:00:49.9]} 10. Bd3 {[%clk 0:00:36.4]} 10... e6 {[%clk 0:00:48]} 11. Bxf5 {[%clk 0:00:35.2]} 11... exf5 {[%clk 0:00:46.2]} 12. Qd3 {[%clk 0:00:33.7]} 12... Nf6 {[%clk 0:00:44.9]} 13. Be3 {[%clk 0:00:32.8]} 13... Qd6 {[%clk 0:00:42.3]} 14. O-O {[%clk 0:00:31.6]} 14... Be7 {[%clk 0:00:38.9]} 15. Qb5 {[%clk 0:00:30.6]} 15... b6 {[%clk 0:00:37.5]} 16. Qa6+ {[%clk 0:00:29.4]} 16... Kb8 {[%clk 0:00:28.1]} 17. Nb5 {[%clk 0:00:28.1]} 17... Qc5 {[%clk 0:00:21]} 18. Qxa7+ {[%clk 0:00:25.2]} 18... Kc8 {[%clk 0:00:18.5]} 19. Bxc5 {[%clk 0:00:24.1]} 19... Rd7 {[%clk 0:00:16.5]} 20. Bxe7 {[%clk 0:00:21.5]} 20... Nxd5 {[%clk 0:00:14]} 21. Ne5 {[%clk 0:00:18.3]} 21... Rxe7 {[%clk 0:00:12.2]} 22. Nc6 {[%clk 0:00:17.2]} 22... Kd7 {[%clk 0:00:11]} 23. Qxc7+ {[%clk 0:00:15.7]} 23... Nxc7 {[%clk 0:00:09.7]} 24. Nxc7 {[%clk 0:00:15.5]} 24... Kxc7 {[%clk 0:00:08.8]} 25. Ne5 {[%clk 0:00:13.9]} 25... f6 {[%clk 0:00:07.3]} 26. Nc4 {[%clk 0:00:10.6]} 26... Rd8 {[%clk 0:00:06.2]} 27. b3 {[%clk 0:00:09.1]} 27... Red7 {[%clk 0:00:05.2]} 28. Rae1 {[%clk 0:00:08.2]} 28... Kc6 {[%clk 0:00:05.1]} 29. g3 {[%clk 0:00:07.6]} 29... b5 {[%clk 0:00:04.6]} 30. Na5+ {[%clk 0:00:06.6]} 30... Kb6 {[%clk 0:00:03.7]} 31. b4 {[%clk 0:00:06.2]} 31... Ka7 {[%clk 0:00:01.9]} 32. a3 {[%clk 0:00:05.8]} 32... Rd2 {[%clk 0:00:01.1]} 33. Nc6+ {[%clk 0:00:05.1]} 1-0